Cogmind - Beta 16 *** ADVENTURER MODE // 2025.11.15 @ 00:37:10 Player: oshi0ne1 Result: Destroyed by S-10 Pest with Light Assault Rifle Performance ------------- Evolutions (2) 1000 Regions Visited (7) 1400 Robots Destroyed (54) 270 Value Destroyed (1311) 1311 Prototype IDs (0) 0 Alien Tech Used (0) 0 Bonus (0) 0 TOTAL SCORE: 3981 Bonus ------- None Cogmind --------- Core Integrity 0/550 Matter 26/300 Energy 100/100 System Corruption 0% Temperature Cool (0) Movement Core (700) Ox13 Location -8/Materials Parts ------- > --- POWER (2) -------- (None) > --- PROPULSION (2) --- (None) > --- UTILITY (4) ------ High-capacity Storage Unit > --- WEAPON (3) ------- (None) > --- INVENTORY (20) --- Aluminum Leg Heat Sink Light EM Pulse Cannon Particle Cannon Light Assault Rifle Light Assault Rifle Gauss Rifle Peak State ------------ > --- POWER ------------ Light Ion Engine > --- PROPULSION ------- Flight Unit Flight Unit > --- UTILITY ---------- Heat Sink Improved Heat Sink High-capacity Storage Unit Small Battery > --- WEAPON ----------- Shotgun Mini Grenade Launcher > --- INVENTORY -------- Aluminum Leg Heat Sink Light EM Pulse Cannon Particle Cannon Light Assault Rifle Rocket Launcher Mini Grenade Launcher [Rating: 14] Favorites ----------- Power Light Ion Engine Engine Light Ion Engine Propulsion Flight Unit Treads Light Treads Leg Aluminum Leg Wheel Wheel Hover Unit Hover Unit Flight Unit Flight Unit Utility Medium Storage Unit Device Improved Heat Sink Storage Medium Storage Unit Processor Signal Interpreter Weapon Mini Grenade Launcher Energy Gun EM Pulse Gun Ballistic Gun Shotgun Launcher Mini Grenade Launcher Build | -11 -10 -10 -9 -9 -9 -8 -8 ------- Run | Yrd Mat Min Mat Min Exi Min Mat Slots Evolved 4 | . . . 2 . . . 2 Power 1 | . . . . . . . 1 Propulsion . | . . . . . . . . Utility 2 | . . . 2 . . . . Weapon 1 | . . . . . . . 1 Parts Attached 38 | 7 2 9 6 2 4 3 5 Power 4 | 1 . 2 . . . 1 . Engine 4 | 1 . 2 . . . 1 . Core . | . . . . . . . . Reactor . | . . . . . . . . Propulsion 13 | 2 . 3 3 . 1 2 2 Treads 1 | . . . . . . . 1 Leg 1 | . . . . . 1 . . Wheel 4 | 2 . 1 . . . . 1 Hover 1 | . . . 1 . . . . Flight 6 | . . 2 2 . . 2 . Utility 10 | 1 2 . 1 2 3 . 1 Device 4 | . . . 1 1 1 . 1 Storage 5 | 1 1 . . 1 2 . . Processor 1 | . 1 . . . . . . Hackware . | . . . . . . . . Protection . | . . . . . . . . Artifact . | . . . . . . . . Weapon 11 | 3 . 4 2 . . . 2 Energy Gun 1 | 1 . . . . . . . Energy Cannon . | . . . . . . . . Ballistic Gun 7 | 2 . 4 1 . . . . Ballistic Cannon . | . . . . . . . . Launcher 3 | . . . 1 . . . 2 Special Weapon . | . . . . . . . . Impact Weapon . | . . . . . . . . Slashing Weapon . | . . . . . . . . Piercing Weapon . | . . . . . . . . Special Melee Weapon . | . . . . . . . . Unidentified Prototypes . | . . . . . . . . Parts Lost 26 | . . 6 7 . . . 13 Power 3 | . . 1 1 . . . 1 Propulsion 10 | . . 3 3 . . . 4 Utility 6 | . . . 2 . . . 4 Weapon 7 | . . 2 1 . . . 4 Highest Loss Streak 6 | . . 6 6 . . . 5 To Critical Strikes . | . . . . . . . . Average Backups 6 | . 1 3 7 8 8 7 7 Power . | . . . . . . . . Propulsion 1 | . . 2 2 2 2 1 1 Utility 1 | . . 1 2 2 1 1 1 Weapon 3 | . . . 2 4 5 5 4 Tool/Special . | . . . . . . . . Unused Backups 4 | . . . . . . . 4 Power . | . . . . . . . . Propulsion . | . . . . . . . . Utility 1 | . . . . . . . 1 Weapon 3 | . . . . . . . 3 Tool/Special . | . . . . . . . . Average Slot Usage (%) 73 | . 96 93 77 62 68 78 44 Engine 4 | . 14 12 9 . . . 3 Wheel 5 | . 28 20 . . . . 1 Hover 3 | . . . 1 10 8 . . Flight 6 | . . 6 17 . 2 11 4 Device 10 | . . . 7 11 13 22 9 Storage 16 | . 14 14 11 18 22 22 10 Processor 4 | . 10 14 9 . . . . Ballistic Gun 13 | . 28 25 11 11 11 11 3 Launcher 8 | . . . 10 11 11 11 8 Peak Build Rating 14 | 6 7 7 12 11 12 14 14 Average Rating 9 | 3 6 6 9 10 11 12 8 On Entrance 7 | . 6 7 7 6 11 12 14 Avg Prop Armor Cover (%) 11 | . . . 4 . . . 16 Naked Turns . | . . . . . . . . Heaviest Build 50 | 14 19 19 16 16 47 50 50 Greatest Support 32 | 26 26 32 8 6 6 8 10 Greatest Overweight (x) 14 | 1 . 3 4 2 11 11 14 Average Overweight (x) 1 | . . . 1 2 2 10 7 Largest Inventory Capacity 20 | 8 10 10 10 10 20 20 20 Average Capacity 13 | 7 9 10 10 10 13 20 20 Most Carried 10 | 4 3 5 10 10 10 9 9 Average Carried 6 | . 1 3 7 8 8 7 7 Final Capacity 20 | 8 10 10 10 10 20 20 20 Final Carried 10 | . 3 5 10 9 8 7 7 Class Distribution -------------------- 85% | Mutant 14% | Scavenger-Mutant Dominant Class ---------------- Mutant | -10/Materials Mutant | -10/Mines Mutant | -9/Materials Mutant | -9/Mines Mutant | -9/Exiles Mutant | -8/Mines Mutant | -8/Materials Resources | -11 -10 -10 -9 -9 -9 -8 -8 ----------- Run | Yrd Mat Min Mat Min Exi Min Mat Matter Collected 850 | 148 41 221 328 77 . 11 24 Remotely . | . . . . . . . . Salvage Created 1120 | . 68 167 596 . . 32 257 Parts 77 | . 5 17 27 . . 7 21 Haulers Intercepted . | . . . . . . . . Recyclers Shooed 1 | . . . 1 . . . . Parts Field Recycled . | . . . . . . . . Retrieved Matter . | . . . . . . . . Parts Self-Destructed . | . . . . . . . . Prevented . | . . . . . . . . Parts Restored . | . . . . . . . . Kills | -11 -10 -10 -9 -9 -9 -8 -8 ------- Run | Yrd Mat Min Mat Min Exi Min Mat Combat Hostiles Destroyed 37 | . 2 8 12 . . 3 12 Guns 15 | . 2 8 2 . . 3 . AOE 22 | . . . 10 . . . 12 Classes Destroyed 10 | . 2 1 5 . . . 2 Worker 4 | . . . 4 . . . . Builder 2 | . . . . . . . 2 Recycler 5 | . . . 5 . . . . Operator 2 | . . . 2 . . . . Watcher 4 | . 2 . 2 . . . . Swarmer 13 | . 2 6 . . . 3 2 Grunt 20 | . . 2 10 . . . 8 Brawler 1 | . . . 1 . . . . Sentry 2 | . . . 1 . . . 1 Hunter 1 | . . . . . . . 1 Best Kill Streak 11 | . 2 3 11 . . 3 9 Combat Bots Only 9 | . 2 3 5 . . 3 9 Max Kills in Single Turn 3 | . 1 1 3 . . 1 3 Gunslinging . | . . . . . . . . Exploded 3 | . . . 1 . . . 3 Melee . | . . . . . . . . Uniques/NPCs Destroyed . | . . . . . . . . Combat | -11 -10 -10 -9 -9 -9 -8 -8 -------- Run | Yrd Mat Min Mat Min Exi Min Mat Hostile Shots Fired 379 | . 9 88 65 . . 11 206 Missed 112 | . 4 28 17 . . 5 58 Hits 267 | . 5 60 48 . . 6 148 Melee 6 | . . . 6 . . . . Projectile 261 | . 5 60 42 . . 6 148 AOE 1 | . . 1 . . . . . Critical Strikes 11 | . . 2 3 . . 1 5 Damage Taken 2485 | . 29 579 555 . . 41 1281 Core 936 | . 5 206 155 . . 13 557 Absorbed by Shields 33 | . . . . . . . 33 Ignored by Resistances 754 | . 10 176 164 . . 12 392 Core Remaining (%) 57 | 100 . 15 . . . 58 . Volleys Fired 94 | . 13 32 33 . . 3 13 Largest 2 | . 1 2 1 . . 1 1 Hottest 40 | . 20 40 30 . . 23 33 Shots Fired 112 | . 13 47 33 . 3 3 13 Gun 78 | . 13 47 9 . 2 3 4 Cannon . | . . . . . . . . Launcher 34 | . . . 24 . 1 . 9 Special . | . . . . . . . . Kinetic 78 | . 13 47 9 . 2 3 4 Thermal . | . . . . . . . . Explosive 34 | . . . 24 . 1 . 9 Electromagnetic . | . . . . . . . . Robot Hit Streak 36 | . 4 13 35 . . 36 2 Robot Miss Streak 2 | . 1 2 . . . 2 2 Penetration Max . | . . . . . . . . Secondary Targets 1 | . . 1 . . . . . Max Gunslinging Chain 1 | . . 1 . . . . . Shots Hit Robots 84 | . 9 38 29 . . 3 5 Core Hits 91 | . 5 14 37 . . 3 32 Critical Kills . | . . . . . . . . Critical Parts Destroyed . | . . . . . . . . Critical Strikes . | . . . . . . . . Melee Attacks . | . . . . . . . . Impact . | . . . . . . . . Slashing . | . . . . . . . . Piercing . | . . . . . . . . Sneak Attacks . | . . . . . . . . Combat Hostiles . | . . . . . . . . Follow-up Attacks . | . . . . . . . . Damage Inflicted 3513 | . 113 321 1821 . . 31 1227 Guns 624 | . 113 321 105 . . 31 54 Cannons . | . . . . . . . . Explosions 2888 | . . . 1716 . . . 1172 Melee . | . . . . . . . . Ramming 1 | . . . . . . . 1 Kinetic 624 | . 113 321 105 . . 31 54 Thermal . | . . . . . . . . Explosive 2888 | . . . 1716 . . . 1172 Electromagnetic . | . . . . . . . . Impact . | . . . . . . . . Slashing . | . . . . . . . . Piercing . | . . . . . . . . Highest Corruption 7 | . . . 7 7 7 7 . Average Corruption 6 | . . . 5 7 7 7 . Corruption Purged . | . . . . . . . . Corruption Blocked . | . . . . . . . . Effects 61 | . . . 2 12 29 18 . Message Errors 19 | . . . . 5 8 6 . Matter Fused 13 | . . . . 3 6 4 . Heat Flow Errors 10 | . . . . 2 5 3 . Energy Discharges 4 | . . . 1 . 1 2 . Parts Fused 2 | . . . . 1 1 . . Data Loss (minor) 7 | . . . . 1 4 2 . Data Loss (major) 1 | . . . 1 . . . . Misfires 3 | . . . . . 3 . . Alerts 2 | . . . . . 1 1 . Overload Shots . | . . . . . . . . Overflow Damage 69 | . . . 47 . . . 22 Projectiles . | . . . . . . . . Explosions 69 | . . . 47 . . . 22 Melee . | . . . . . . . . Knockbacks . | . . . . . . . . Impact . | . . . . . . . . Kinetic . | . . . . . . . . Secondary . | . . . . . . . . Self-Inflicted Damage 90 | . . . 32 . . . 58 Shots 5 | . . . 1 . . . 4 Rammed 6 | . . . 2 . . . 4 Targets Rammed 6 | . . . 2 . . . 4 Kicked . | . . . . . . . . Crushed . | . . . . . . . . Highest Temperature 199 | . . 28 10 194 161 199 . Average Temperature 50 | . . 8 10 95 73 102 . Received Heat Transfer 1122 | . . 417 270 . . . 435 Siege Activations . | . . . . . . . . Martial Activations . | . . . . . . . . Shielding Activations . | . . . . . . . . Robots Disrupted . | . . . . . . . . Combat Hostiles . | . . . . . . . . Robots Corrupted . | . . . . . . . . Combat Hostiles . | . . . . . . . . Parts Fried . | . . . . . . . . Impact Corruptions . | . . . . . . . . Robots Melted . | . . . . . . . . Combat Hostiles . | . . . . . . . . Parts Melted . | . . . . . . . . Heat Transferred . | . . . . . . . . Parts Sabotaged . | . . . . . . . . Parts Stolen . | . . . . . . . . Parts Stripped . | . . . . . . . . Power Chain Reactions . | . . . . . . . . Alert | -11 -10 -10 -9 -9 -9 -8 -8 ------- Run | Yrd Mat Min Mat Min Exi Min Mat Maximum Alert Level 1 | . . . 1 . . . 1 Low Security (%) 89 | 100 100 100 81 100 . 100 58 Level 1 10 | . . . 18 . . . 41 Level 2 . | . . . . . . . . Level 3 . | . . . . . . . . Level 4 . | . . . . . . . . Level 5 . | . . . . . . . . High Security . | . . . . . . . . Max Security . | . . . . . . . . Peak Influence 248 | . 40 90 248 71 . 70 241 Initial 71 | . . 13 6 71 . . 13 Average 52 | . 1 31 91 17 . 6 152 Influence Increases 1177 | . 54 205 492 . . 70 356 Destroy 0b10 Robot/C 740 | . 40 160 240 . . 60 240 Destroy 0b10 Robot/NC 85 | . 10 . 65 . . . 10 Destroy Leader 168 | . 4 30 64 . . 10 60 Disable Machine 45 | . . . 36 . . . 9 Destroy Structure 124 | . . . 87 . . . 37 Lose Combat Pursuer 15 | . . 15 . . . . . Influence Decreases 1101 | . 14 225 294 218 . 30 320 Entered New Map 215 | . . 27 14 147 . . 27 Time Decay 656 | . 14 148 210 71 . 30 183 Lost Part 230 | . . 50 70 . . . 110 Squads Dispatched 11 | . . . 5 . . . 6 Investigation 2 | . . . 1 . . . 1 Extermination . | . . . . . . . . Reinforcement 6 | . . . 4 . . . 2 Assault . | . . . . . . . . Garrison 3 | . . . . . . . 3 Intercept . | . . . . . . . . Searches Triggered . | . . . . . . . . Construction Impeded 2 | . . . 1 . . . 1 Haulers Reinforced . | . . . . . . . . Active Scanning Responses . | . . . . . . . . Cargo Convoy Interrupts . | . . . . . . . . Stealth | -11 -10 -10 -9 -9 -9 -8 -8 --------- Run | Yrd Mat Min Mat Min Exi Min Mat Distress Signals 2 | . . . . . . . 2 Communications Jammed . | . . . . . . . . Distress Signals . | . . . . . . . . Times Spotted 60 | . 6 9 20 . . 3 22 Peak Tracking Total 7 | . 3 3 6 . . 3 7 Tactical Retreats 1 | . . 1 . . . . . Traps | -11 -10 -10 -9 -9 -9 -8 -8 ------- Run | Yrd Mat Min Mat Min Exi Min Mat Traps Triggered . | . . . . . . . . Indirectly . | . . . . . . . . Trap Hack Attempts . | . . . . . . . . Triggered . | . . . . . . . . Disarmed . | . . . . . . . . Reprogrammed . | . . . . . . . . Reused . | . . . . . . . . Traps Extracted . | . . . . . . . . Installed . | . . . . . . . . Triggered . | . . . . . . . . Machines | -11 -10 -10 -9 -9 -9 -8 -8 ---------- Run | Yrd Mat Min Mat Min Exi Min Mat Machines Disabled 5 | . . . 4 . . . 1 Max in Single Turn 1 | . . . 1 . . . 1 Machines Repaired . | . . . . . . . . Machines Dismantled . | . . . . . . . . Machines Sabotaged . | . . . . . . . . Overloaded Fab Kills . | . . . . . . . . Hacking | -11 -10 -10 -9 -9 -9 -8 -8 --------- Run | Yrd Mat Min Mat Min Exi Min Mat Machines Accessed 10 | . 3 . 2 2 2 . 1 Terminals 7 | . 3 . 2 1 . . 1 Fabricators . | . . . . . . . . Repair Stations . | . . . . . . . . Recycling Units . | . . . . . . . . Scanalyzers . | . . . . . . . . Garrison Access . | . . . . . . . . Total Hacks 50 | . 4 . 7 4 32 . 3 Successful 46 | . 4 . 5 3 32 . 2 Failed 4 | . . . 2 1 . . 1 Catastrophic . | . . . . . . . . Database Lockouts . | . . . . . . . . Manual . | . . . . . . . . Terminals 17 | . 4 . 7 3 . . 3 Fabricators . | . . . . . . . . Repair Stations . | . . . . . . . . Recycling Units . | . . . . . . . . Scanalyzers . | . . . . . . . . Garrison Access . | . . . . . . . . Terminal Hacks 46 | . 4 . 5 3 32 . 2 Record 44 | . 4 . 4 2 32 . 2 Open Door 1 | . . . . 1 . . . Maintenance Status 1 | . . . 1 . . . . Fabricator Hacks . | . . . . . . . . Repair Station Hacks . | . . . . . . . . Recycling Unit Hacks . | . . . . . . . . Scanalyzer . | . . . . . . . . Garrison Access Hacks . | . . . . . . . . Unauthorized Hacks . | . . . . . . . . Terminals . | . . . . . . . . Fabricators . | . . . . . . . . Repair Stations . | . . . . . . . . Recycling Units . | . . . . . . . . Scanalyzers . | . . . . . . . . Garrison Access . | . . . . . . . . Data Cores Recovered . | . . . . . . . . Used . | . . . . . . . . Hacking Detections 5 | . 2 . 1 1 . . 1 Full Trace Events 3 | . . . 1 1 . . 1 Feedback Events . | . . . . . . . . Feedback Blocked . | . . . . . . . . Robot Schematics Acquired . | . . . . . . . . Robots Built . | . . . . . . . . Authchips . | . . . . . . . . Time . | . . . . . . . . Total Robot Build Rating . | . . . . . . . . Part Schematics Acquired . | . . . . . . . . Parts Built . | . . . . . . . . Authchips . | . . . . . . . . Time . | . . . . . . . . Total Part Build Rating . | . . . . . . . . Part Studies Acquired . | . . . . . . . . Parts Repaired . | . . . . . . . . Time . | . . . . . . . . Parts Recycled . | . . . . . . . . Recycled Matter . | . . . . . . . . Retrieved Matter . | . . . . . . . . Retrieved Components . | . . . . . . . . Parts Scanalyzed . | . . . . . . . . Part Schematics Acquired . | . . . . . . . . Parts Damaged . | . . . . . . . . Bothacking | -11 -10 -10 -9 -9 -9 -8 -8 ------------ Run | Yrd Mat Min Mat Min Exi Min Mat Used RIF Installer . | . . . . . . . . Robots Hacked . | . . . . . . . . Non-combat . | . . . . . . . . Combat . | . . . . . . . . Robot Hacks Applied . | . . . . . . . . Relay Couplers Released . | . . . . . . . . Fabnet Peak Effective % . | . . . . . . . . Robots Rewired . | . . . . . . . . Allies Hacked . | . . . . . . . . Hacks Repelled . | . . . . . . . . Allies | -11 -10 -10 -9 -9 -9 -8 -8 -------- Run | Yrd Mat Min Mat Min Exi Min Mat Total Allies . | . . . . . . . . Largest Group . | . . . . . . . . Highest-Rated Group . | . . . . . . . . Highest-Rated Ally . | . . . . . . . . Total Orders . | . . . . . . . . Ally Attacks . | . . . . . . . . Total Damage . | . . . . . . . . Kills . | . . . . . . . . Allies Corrupted . | . . . . . . . . Allies Melted . | . . . . . . . . Intel | -11 -10 -10 -9 -9 -9 -8 -8 ------- Run | Yrd Mat Min Mat Min Exi Min Mat Active Infowar (turns) . | . . . . . . . . Robot Analysis Total . | . . . . . . . . Derelict Logs Recovered 3 | . . 1 . 2 . . . Drone Launches . | . . . . . . . . Drone Recoveries . | . . . . . . . . Exploration | -11 -10 -10 -9 -9 -9 -8 -8 ------------- Run | Yrd Mat Min Mat Min Exi Min Mat Turns Passed 3367 | 98 259 422 501 319 865 485 418 Spaces Moved 1575 | 60 248 316 295 175 336 56 89 Core 75 | 31 . 3 21 . . . 20 Treads . | . . . . . . . . Legs . | . . . . . . . . Wheels 587 | 29 248 260 . . . . 50 Hover 530 | . . . 31 175 320 4 . Flight 383 | . . 53 243 . 16 52 19 Fastest Speed 50 | 50 90 90 112 180 180 437 140 Average Speed 187 | 93 90 95 134 180 246 843 394 Slowest Speed 1000 | 100 90 200 275 180 920 920 1000 Overloaded Moves . | . . . . . . . . Propulsion Burnouts . | . . . . . . . . Robots Hopped . | . . . . . . . . Potential Cave-ins . | . . . . . . . . Cave-ins Triggered . | . . . . . . . . Exploration Rate (%) 33 | 4 48 67 25 32 62 17 10 Regions Visited 7 Branch Regions 4 Pre-discovered Areas 1 | . . . . . 1 . . Known Exits Taken 3 | . 1 1 . . . 1 . Unknown Exits Taken 4 | 1 . . 1 1 1 . . Scrap Searched 3 | . . 1 . 2 . . . Spaces Dug . | . . . . . . . . Terrain Destroyed 149 | . . . 106 . 10 . 33 Melee . | . . . . . . . . Projectile . | . . . . . . . . AOE 149 | . . . 106 . 10 . 33 Terrain Rammed . | . . . . . . . . Walls Destroyed . | . . . . . . . . Machines Disabled . | . . . . . . . . Actions | -11 -10 -10 -9 -9 -9 -8 -8 --------- Run | Yrd Mat Min Mat Min Exi Min Mat Total 1880 | 102 270 395 362 179 379 70 123 Wait 101 | 28 2 21 18 . 25 . 7 Move 1568 | 59 247 315 294 174 335 55 89 Hop . | . . . . . . . . Pick Up 44 | 7 5 11 8 2 2 4 5 Fast Attach . | . . . . . . . . Attach 32 | 7 1 9 3 3 1 3 5 Detach . | . . . . . . . . Swap 17 | . 1 4 4 . 6 2 . Drop 10 | 1 1 3 . . 2 3 . Fire 94 | . 13 32 33 . . 3 13 Melee . | . . . . . . . . Ram 6 | . . . 2 . . . 4 Kick . | . . . . . . . . Crush . | . . . . . . . . Escape Stasis . | . . . . . . . . Rewire 8 | . . . . . 8 . . Trap . | . . . . . . . . Miscellaneous . | . . . . . . . . Route ------- -11/Scrapyard -10/Materials -10/Mines -9/Materials -9/Mines (discovered 2 exits: Mat / *Exi) -9/Exiles (discovered 2 exits: [*Min x2]) -8/Mines -8/Materials History --------- Turn | Location | Event 10 | -11/Scrapyard | Discovered new exit (range 15) 99 | -11/Scrapyard | Entered Materials 182 | -10/Materials | Discovered new exit (range 14) 304 | -10/Materials | Build established: Mutant 332 | -10/Materials | Identified exit to Mines 358 | -10/Materials | Entered Mines 618 | -10/Mines | Discovered new exit (range 10) 685 | -10/Mines | Core integrity fell below 50% 713 | -10/Mines | Core integrity fell below 20% 718 | -10/Mines | Lost 6 parts (1p3n2w) 777 | -10/Mines | Identified exit to Materials 780 | -10/Mines | Entered Materials 780 | -9/Materials | Evolved 2 slots: Utility x2 984 | -9/Materials | Build established: Scavenger-Mutant 1169 | -9/Materials | Discovered new exit (range 13) 1249 | -9/Materials | Lost 6 parts (1p2n2u1w) 1281 | -9/Materials | Entered Mines 1303 | -9/Mines | Build established: Mutant 1337 | -9/Mines | Identified exit to Materials 1350 | -9/Mines | Learned Materials emergency access door positions 1494 | -9/Mines | Found the Drone Emporium 1564 | -9/Mines | Deemed a non-threat by the Exiles lab entrance 1564 | -9/Mines | Discovered new exit (range 5) 1600 | -9/Mines | Entered Exiles 1629 | -9/Exiles | Discovered new exit (range 15) 1656 | -9/Exiles | Met 8R-AWN 1683 | -9/Exiles | Met EX-HEX 1763 | -9/Exiles | Met EX-BIN 1941 | -9/Exiles | Met EX-DEC 1949 | -9/Exiles | Learned location of Zion (-7) 2238 | -9/Exiles | Discovered new exit (range 14) 2465 | -9/Exiles | Entered Mines 2806 | -8/Mines | Discovered exit to Materials (range 10) 2950 | -8/Mines | Entered Materials 2950 | -8/Materials | Evolved 2 slots: Power x1, Weapon x1 3021 | -8/Materials | Garrison activated, responded to threat 3052 | -8/Materials | Destroyed 9 combat bots 3157 | -8/Materials | Lost 5 parts (1p1n1u2w) 3311 | -8/Materials | Core integrity fell below 50% 3359 | -8/Materials | Core integrity fell below 20% 3368 | -8/Materials | Destroyed by S-10 Pest with Light Assault Rifle Last Messages --------------- Acquired Wheel. Y-45 Defender emerges from the garrison. Imp. Heat Sink destroyed. Atomic Centrifuge disabled. U-05 Engineer lays Concrete. Acquired Unknown Device. W-25 Informer distress signal alerts nearby ally. Wheel destroyed. Lgt. Treads destroyed. Rocket Launcher destroyed. Identified Shield Generator. Shield Generator destroyed. Acquired Lgt. Assault Rifle. Slammed into S-10 Pest. Mni. Grenade Launcher destroyed. Slammed into S-10 Pest. M-13 Machinist repairs Y-45 Defender. K-01 Serf collects debris. Slammed into S-10 Pest. Map ----- +----------------------------------------------------+ | ???????????????# """ #??????????? | | ??????????#????# #??????????? | | ??????????# #### #??????????? | | ???????????? """ #??????????? | | ????#####????# """ #??????????? | | ??? ! ???# """ ##?????????? | | ??# !!! ### # """ ????? | | ??? ! !!! + ^ ^ + """ ????? | | ??? !! ##^ ^ """ # ? | | ????????????# """ #?????????? | | ????????????# """ #?????????? | | ????????????# #?????????? | | ????????????# ####??????? | | ????????????# """ !##?????? | | ????????????# """ !#?????? | | ????????????# """ !#?????? | | ????????????# !#?????? | | ????????????# !#?????? | | ????????????# "" !###????? | | ????????????# "" ########??? | | ????????????# " #! #??? | | ????????????# #Y""" #??? | | ?????# ???# # "G" #??? | | ?????# # Y " " #??? | | ?? #ss #??? | | ?? #@s #??? | | ?? "T" !########??? | | ????######### "" [ ##????? | | ????????????######### ##????? | | ???????????????????## #?????? | | ????????????????????####/####?????? | | ??????????????????????? ????????? | | ??????????????????????? "????????? | | ??????????????????????? ""???????? | | ??????????????????????? "????????? | | ?????????????????????? ????????? | | ?????????????????????? "????????? | | ?????????????????????? "????????? | | ?????????????????????? ??????????? | | ??????????????????????? ??????????? | | ??????????????????????????????????? | | ??????????????????????????????????? | | ??????????????????????????????????? | | ??????????????????????????????????? | | ??????????????????????????????????? | | ??????????????????????????????????? | | ??????????????????????????????????? | | ??????????????????????????????????? | | ??????????????????????????????????? | | ??????????????????????????????????? | +----------------------------------------------------+ Best States ------------- Heat Dissipation 55 Energy Generation 10 Energy Capacity 250 Matter Stores 300 Matter Capacity 300 Sight Range 16 Terrain Scan Density 10 Resistance: KI 20 Resistance: TH 20 Resistance: EX 20 Resistance: EM 20 Resistance: I 20 Resistance: S 20 Resistance: P 20 Evasion (%) 42 Offensive Hacking 10 Item Schematics ----------------- None Robot Schematics ------------------ None Fabricated ------------ Nothing Repaired ---------- Nothing Studied --------- None Alien Tech Used ----------------- None Achievements -------------- Maybe Next Time I'll Detach My Launcher Tourist Challenges ------------ None Game ------ Seed RecoilDirtyPrototype Manual? 0 Play Time 00:46:46 Cumulative 3.6 hours Start 2025.11.14 @ 20:08:38 End 2025.11.15 @ 00:37:10 Sessions 5 Manual Loads 0 Difficulty Adventurer Special Mode None Game No. 5 Rogue 0 Adventurer 5 Explorer 0 Win Type - Total 0 Types 0/0/0/0/0/0/0/0/0/0 Lore% 4 Gallery% 5 Achievement% 5 Wizard Run 0 Options --------- Layout 1 ASCII 0 Keyboard 0 Movement Mouse Keybinds 0 Fullscreen 1 Font 24/X11 Map View 50x35 Zoom Use 1% Tactical HUD 0 Map Filters NONE Filters NONE Steam 1 RUN: 29639a20-6502-4d11-9e57-6f4d9917a2a7